bitfinex/quotes_ETHUSD_20240701
["timestamp","ask_amount","ask_price","bid_price","bid_amount"]
[1719818798741,0.804,3491.2,3490.6,2.42]
[1719818799177,3.0,3492.2,3490.5,7.32]
[1719818799178,2.86465,3490.9,3490.5,7.32]
[1719818799475,2.86467,3490.8,3490.5,7.32]
[1719818802080,2.86483,3490.6,3490.5,7.32]
[1719818802393,2.86483,3490.6,3490.0,3.66932]
[1719818802602,2.86483,3490.6,3490.1,4.919368]
[1719818802975,2.86483,3490.6,3490.1,1.919368]
[1719818805118,2.86467,3490.8,3490.1,1.919368]
[1719818805404,2.86467,3490.8,3490.2,3.6691]
[1719818805904,2.86467,3490.8,3490.2,0.804]
[1719818806071,2.86467,3490.8,3490.2,2.35778742]
[1719818808869,2.86467,3490.8,3490.2,1.55378742]
[1719818812221,2.86436,3491.2,3490.4,2.4881]
[1719818812512,2.86465,3490.9,3490.4,3.2921]
[1719818812719,2.86465,3490.9,3490.4,0.77109174]
[1719818816201,2.86452,3491.0,3490.4,0.77109174]
[1719818816202,3.66867,3490.8,3490.4,0.77109174]
[1719818816388,2.86467,3490.8,3490.4,0.77109174]
[1719818818387,3.66867,3490.8,3490.0,5.2193]
[1719818818581,2.437,3490.7,3490.0,5.2193]
[1719818819794,2.86485,3490.6,3490.0,5.2193]
[1719818821013,2.86485,3490.6,3490.0,2.354]
[1719818821215,2.437,3490.7,3489.9,7.32]
[1719818821216,3.66906,3490.4,3489.9,7.32]
[1719818821385,3.66922,3490.2,3489.9,7.32]
[1719818821579,2.86522,3490.2,3489.9,7.32]
[1719818823898,3.66922,3490.2,3489.5,2.3494]
[1719818824103,3.66922,3490.2,3489.6,2.19889646]
[1719818824302,3.66922,3490.2,3489.6,5.19889646]
[1719818824815,2.86532,3490.0,3489.6,5.19889646]
[1719818825123,2.86532,3490.0,3489.6,2.19889646]
[1719818826326,2.86532,3490.0,3489.7,0.89289549]
[1719818828622,2.86522,3490.2,3489.7,0.89289549]
[1719818834032,3.66922,3490.2,3489.5,5.21513]
[1719818839460,2.86524,3490.1,3489.5,5.21513]
[1719818840933,5.3579,3490.3,3489.6,2.86558]
[1719818842462,2.86517,3490.2,3489.6,2.86558]
[1719818842757,2.86517,3490.2,3489.6,4.5142193]
[1719818844334,2.86517,3490.2,3489.6,4.4895687]
[1719818845473,2.86517,3490.2,3489.6,2.8409294]
[1719818854555,2.86395,3491.7,3489.4,11.271353]
[1719818854556,2.86549,3489.8,3489.4,7.32]
[1719818855198,3.66941,3489.9,3489.4,7.32]
[1719818857890,3.1136,3490.1,3489.4,7.32]
[1719818858091,2.3096,3490.1,3489.4,7.32]
[1719818858296,2.86539,3490.0,3489.4,10.1858]
[1719818859744,2.86527,3490.1,3489.5,2.92298171]
[1719818859949,2.86527,3490.1,3489.6,2.4736]
[1719818880322,2.86535,3490.0,3489.6,2.4736]
[1719818881146,2.86535,3490.0,3489.4,2.3442]
[1719818885334,5.33015,3490.0,3489.3,2.86589]
[1719818885539,2.86543,3489.9,3489.3,2.86589]
[1719818887973,2.86533,3490.0,3489.4,2.86581]
[1719818888131,2.86533,3490.0,3489.5,2.3175]
[1719818888325,2.86533,3490.0,3489.5,3.1215]
[1719818888566,2.86519,3490.2,3489.6,0.05730879]
[1719818888740,2.86519,3490.2,3489.6,0.8575355]
[1719818889761,2.86525,3490.1,3489.6,0.8575355]
[1719818894496,2.86525,3490.1,3489.6,0.05730879]
[1719818894807,2.86525,3490.1,3489.5,5.98723]
[1719818896095,2.86534,3490.0,3489.3,4.82360834]
[1719818896412,5.11715,3490.1,3489.4,2.86576]
[1719818899599,2.86535,3490.0,3489.4,2.86576]
[1719818900101,2.86535,3490.0,3489.4,5.00658017]
[1719818902807,2.86535,3490.0,3489.5,0.804]
[1719818905380,2.86562,3489.7,3489.3,2.3055]
[1719818905585,5.73091,3489.9,3489.3,3.1095]
[1719818905793,2.86544,3489.9,3489.3,3.1095]
[1719818913934,2.86544,3489.9,3489.3,2.3055]
[1719818914812,2.86544,3489.9,3489.3,5.17139]
[1719818915215,2.86544,3489.9,3489.4,0.804]
[1719818916032,2.86511,3490.3,3489.6,2.4768]
[1719818916234,0.20836103,3490.2,3489.6,2.4768]
[1719818916536,2.86511,3490.3,3489.6,5.34244]
[1719818916722,0.20835917,3490.2,3489.6,6.14644]
[1719818916912,2.86511,3490.3,3489.6,6.14644]
[1719818917232,0.20835923,3490.2,3489.6,6.14644]
[1719818917431,2.86511,3490.3,3489.6,6.14644]
[1719818917635,0.20835898,3490.2,3489.6,6.14644]
[1719818917937,2.86511,3490.3,3489.6,6.14644]
[1719818918133,2.86517,3490.2,3489.6,3.2808]
[1719818919139,2.86517,3490.2,3489.6,2.4768]
[1719818923600,2.86525,3490.1,3489.6,2.4768]
[1719818941410,2.86525,3490.1,3489.3,2.3271]
[1719818941411,2.86549,3489.9,3489.3,2.3271]
[1719818943293,2.86549,3489.9,3489.4,0.804]
[1719818943887,2.86525,3490.1,3489.4,0.804]
[1719818944189,2.86525,3490.1,3489.4,3.66981]
[1719818951082,2.86525,3490.1,3489.5,2.92302116]
[1719818951270,2.86525,3490.1,3489.6,2.3378]
[1719818951477,2.86517,3490.2,3489.6,2.3378]
[1719818951711,2.86511,3490.3,3489.7,2.86555]
[1719818952014,0.20836348,3490.2,3489.7,2.86555]
[1719818952198,2.86511,3490.3,3489.7,2.86555]
[1719818952405,0.20836326,3490.2,3489.7,2.86555]
[1719818952571,2.86511,3490.3,3489.7,2.86555]
[1719818952973,0.20836326,3490.2,3489.7,2.86555]
[1719818953174,2.86511,3490.3,3489.7,2.86555]
[1719818953385,0.2083633,3490.2,3489.7,2.86555]
[1719818953580,2.86511,3490.3,3489.7,2.86555]
[1719818953907,0.20836325,3490.2,3489.7,2.86555]
[1719818954080,2.86511,3490.3,3489.7,2.86555]
[1719818954286,0.20836309,3490.2,3489.7,2.86555]
[1719818954488,2.86511,3490.3,3489.7,2.86555]
[1719818954783,0.20836317,3490.2,3489.7,2.86555]
[1719818955001,2.86511,3490.3,3489.7,2.86555]
[1719818955175,0.20836343,3490.2,3489.7,2.86555]
[1719818955376,2.86511,3490.3,3489.7,2.86555]
[1719818955575,0.20836353,3490.2,3489.7,2.86555]
[1719818955787,2.86511,3490.3,3489.7,2.86555]
[1719818955977,2.86511,3490.3,3489.7,3.66955]
[1719818956613,2.86511,3490.3,3489.8,2.3637]
[1719818969740,2.8648,3490.7,3490.0,2.86527]
[1719818970045,3.07318719,3490.6,3490.0,2.86527]
[1719818970222,2.2565,3491.0,3490.3,2.86501]
[1719818970423,0.20832974,3490.9,3490.4,2.86494]
[1719818970650,2.2565,3491.0,3490.4,2.86494]
[1719818970827,0.20832161,3490.9,3490.4,2.86494]
[1719818971023,5.12101,3491.0,3490.4,2.86494]
[1719818971227,0.20832155,3490.9,3490.4,2.86494]
[1719818971450,5.12101,3491.0,3490.4,2.86494]
[1719818977937,2.86466,3490.9,3490.2,3.72644647]
[1719818978138,2.86466,3490.9,3490.2,2.86515]
[1719818979133,3.66866,3490.9,3490.2,2.86515]
[1719818979332,2.86472,3490.8,3490.2,2.86515]
[1719818981632,2.86472,3490.8,3490.1,2.472]
[1719818981840,2.86472,3490.8,3490.1,5.33722]
[1719818983037,2.86472,3490.8,3490.0,2.86526]
[1719818983038,2.86477,3490.7,3490.0,2.86526]
[1719818983768,5.26567,3490.7,3490.0,2.86526]
[1719818986778,5.26567,3490.7,3490.1,2.86524]
[1719818987769,5.26568,3490.7,3490.1,2.86524]
[1719818989080,2.4009,3490.7,3490.1,2.86524]
[1719818993080,2.4009,3490.7,3490.2,2.86514]
[1719818993454,0.804,3490.6,3490.0,2.86532]
[1719818993656,5.26566,3490.7,3490.0,0.804]
[1719818994387,2.4009,3490.7,3490.1,2.86524]
[1719818994588,2.4009,3490.7,3490.2,2.86515]
[1719818996893,2.4009,3490.7,3490.3,2.86506]
[1719819000653,2.4009,3490.7,3490.4,2.86499]
[1719819000853,2.72139,3490.7,3490.2,2.86515]
[1719819001278,2.4009,3490.7,3490.2,2.86515]
[1719819001794,2.4009,3490.7,3490.3,2.86508]
[1719819002499,5.26571,3490.7,3490.1,2.86524]
[1719819003295,2.4009,3490.7,3490.1,2.86524]
[1719819006575,5.26565,3490.7,3490.1,2.86524]
[1719819007110,2.4386,3491.0,3490.5,2.86486]
[1719819008503,2.4386,3491.0,3490.6,2.86483]
[1719819009294,2.4386,3491.0,3490.4,2.86494]
[1719819010505,2.4386,3491.0,3490.5,2.86491]
[1719819011586,2.4386,3491.0,3490.7,2.86473]
[1719819011809,2.4386,3491.0,3490.5,2.86491]
[1719819012396,2.4386,3491.0,3490.6,2.86482]
[1719819014082,2.4667,3491.2,3490.6,2.86482]
[1719819014494,2.4667,3491.2,3490.7,2.86475]
[1719819016088,2.4667,3491.2,3490.8,2.86464]
[1719819016417,2.4667,3491.2,3490.5,0.05729329]
[1719819016609,5.3233,3491.5,3490.9,2.86458]
[1719819016804,1.01230631,3491.4,3490.9,2.86458]
[1719819017007,2.86358,3492.2,3490.4,3.205]
[1719819017008,2.4592,3491.8,3491.2,0.804]
[1719819017324,2.4592,3491.8,3491.4,2.86416]
[1719819023132,2.4592,3491.8,3491.2,3.72556049]
[1719819025309,2.4592,3491.8,3491.2,4.38456454]
[1719819026901,2.4592,3491.8,3491.4,3.66817]
[1719819027205,2.4592,3491.8,3491.5,0.804]
[1719819027405,2.4592,3491.8,3491.4,2.86417]
[1719819028043,2.4592,3491.8,3491.5,2.86409]
[1719819031006,2.4592,3491.8,3491.3,2.86424]
[1719819031249,2.4592,3491.8,3491.3,3.50300541]
[1719819032876,2.4592,3491.8,3491.3,0.63876541]
[1719819033171,2.4592,3491.8,3491.2,2.86431]
[1719819033737,2.292,3491.6,3490.8,7.61075015]
[1719819033933,0.804,3491.7,3490.8,7.32]
[1719819033934,2.292,3491.4,3490.8,7.32]
[1719819034244,2.4413,3491.1,3490.8,7.32]
[1719819034571,2.4413,3491.1,3490.3,2.86506]
[1719819034572,6.10973,3491.1,3490.3,10.18506]
[1719819034745,2.86451,3491.0,3490.4,3.73596631]
[1719819034952,2.86451,3491.0,3490.4,0.73596631]
[1719819036262,2.4413,3491.1,3490.4,3.60089631]
[1719819036748,2.4413,3491.1,3490.5,0.804]
[1719819038570,0.804,3491.3,3490.5,0.804]
[1719819038773,0.804,3491.3,3490.4,0.73596631]
[1719819038774,2.2835,3491.6,3491.2,0.804]
[1719819038935,5.14752,3491.6,3490.8,0.804]
[1719819039139,5.14752,3491.6,3490.8,3.66867]
[1719819040654,5.14752,3491.6,3490.9,2.86457]
[1719819041777,2.2835,3491.6,3491.0,2.8645]
[1719819042491,2.3819,3491.9,3491.3,2.86424]
[1719819042771,2.86352,3492.3,3491.6,3.66799]
[1719819042772,2.3819,3492.3,3491.6,3.66799]
[1719819042987,5.24537,3492.3,3491.4,3.72545166]
[1719819043136,6.04937,3492.3,3491.4,3.72545166]
[1719819043341,2.86354,3492.2,3491.4,3.72545166]
[1719819043586,2.86354,3492.2,3491.4,4.61711983]
[1719819044463,2.86361,3492.1,3491.4,4.61711983]
[1719819044661,3.66761,3492.1,3491.4,3.75583817]
[1719819046046,2.86361,3492.1,3491.4,3.75583817]
[1719819047154,5.86307,3492.8,3490.9,7.32]
[1719819047155,2.4273,3492.0,3490.9,7.32]
[1719819047360,0.804,3491.9,3491.1,2.86438]
[1719819047563,2.86388,3491.8,3491.1,2.86438]
[1719819047882,2.86388,3491.8,3491.1,3.66838]
[1719819048046,2.86388,3491.8,3491.2,1.385296]
[1719819049555,5.29107,3492.0,3491.3,0.804]
[1719819049775,2.86352,3492.2,3491.5,3.66808]
[1719819051152,2.86352,3492.2,3491.6,2.86399]
[1719819051476,2.86323,3492.6,3491.7,0.86127685]
[1719819051665,2.86323,3492.6,3491.9,0.804]
[1719819051666,5.15503,3492.6,3491.9,0.804]
[1719819051865,5.15503,3492.6,3491.9,3.66771]
[1719819052387,5.86303,3492.8,3492.1,0.804]
[1719819052685,5.86303,3492.8,3492.1,3.6676]
[1719819052887,2.86303,3492.8,3492.1,3.6676]
[1719819053647,0.804,3492.7,3491.9,2.92097806]
[1719819053848,2.86303,3492.8,3491.9,2.92097806]
[1719819053849,2.86303,3492.8,3491.9,3.66774]
[1719819054168,2.86303,3492.8,3492.0,0.05726805]
[1719819054365,2.86303,3492.8,3492.1,2.8636]
[1719819054549,2.86312,3492.7,3492.1,2.8636]
[1719819056855,2.86312,3492.7,3491.9,3.66774]
[1719819057255,3.66712,3492.7,3491.9,3.66774]
[1719819058050,3.66712,3492.7,3492.0,2.86368]
[1719819060081,2.86312,3492.7,3492.0,2.86368]
[1719819060582,3.66712,3492.7,3492.0,2.86368]
[1719819060755,0.804,3492.7,3491.9,0.804]
[1719819060960,0.804,3492.7,3491.8,2.86378]
[1719819061156,0.804,3492.3,3491.5,10.18404]
[1719819061394,2.86358,3492.2,3491.5,10.18404]
[1719819061580,2.86358,3492.2,3491.5,12.106717]
[1719819062291,2.86358,3492.2,3491.5,4.786717]
[1719819062488,2.86358,3492.2,3491.6,2.86401]
[1719819062989,0.804,3492.3,3491.6,2.86401]
[1719819063215,2.86336,3492.4,3491.7,2.86393]
[1719819063401,2.86336,3492.4,3491.7,3.9468587]
[1719819065280,2.86336,3492.4,3491.8,2.86383]
[1719819068717,2.86336,3492.4,3491.7,1.0829287]
[1719819068879,2.371,3492.1,3491.4,2.86413]
[1719819069085,2.371,3492.1,3491.5,5.86403]
[1719819069336,2.371,3492.1,3491.6,2.86399]
[1719819071623,2.86344,3492.3,3491.6,2.86399]
[1719819071811,2.86344,3492.3,3491.6,3.817192]
[1719819074346,2.4235,3492.4,3491.7,2.86392]
[1719819074537,2.4235,3492.4,3491.7,3.66792]
[1719819076127,2.86317,3492.7,3491.9,0.804]
[1719819076330,2.86317,3492.7,3492.0,0.05726762]
[1719819076531,2.86317,3492.7,3492.1,2.86359]
[1719819077500,6.12828,3493.0,3492.1,2.86359]
[1719819077699,2.86299,3492.9,3492.1,3.66759]
[1719819077922,2.86305,3492.8,3492.1,3.66759]
[1719819078109,0.804,3492.3,3491.6,0.953202]
[1719819078306,2.86321,3492.6,3491.8,2.4704]
[1719819078527,2.86321,3492.6,3491.9,2.92096818]
[1719819080204,2.86321,3492.6,3492.0,2.86368]
[1719819080438,2.86303,3492.8,3491.9,0.05726818]
[1719819080639,2.4053,3492.9,3492.1,2.92085809]
[1719819080932,2.4053,3492.9,3492.3,2.86342]
[1719819081135,0.804,3493.1,3492.1,0.05726809]
[1719819081338,2.86272,3493.2,3492.0,1.13716682]
[1719819081339,2.86272,3493.2,3492.6,0.804]
[1719819081805,2.86272,3493.2,3492.5,2.3628]
[1719819082844,2.86272,3493.2,3492.6,2.86319]
[1719819091864,5.4593,3493.4,3492.4,2.8633]
[1719819092015,2.4593,3493.4,3492.4,2.8633]
[1719819092842,2.86287,3493.0,3492.4,2.8633]
[1719819094767,2.4605,3492.9,3492.4,2.8633]
[1719819095471,2.86272,3493.2,3492.5,0.05725908]
[1719819097066,2.86278,3493.1,3492.5,2.86327]
[1719819098531,2.86278,3493.1,3492.5,3.58485502]
[1719819098726,5.33528,3493.3,3492.6,2.86319]
[1719819100236,5.33528,3493.3,3492.6,5.19339]
[1719819101147,5.33528,3493.3,3492.7,2.86311]
[1719819103776,3.0,3494.0,3492.8,0.0572591]
[1719819103777,2.86237,3493.6,3492.8,0.0572591]
[1719819103977,2.2932,3493.4,3492.9,3.15762919]
[1719819105252,2.2932,3493.4,3492.9,2.8629]
[1719819105883,2.8627,3493.3,3492.7,2.86308]
[1719819106386,2.2932,3493.4,3492.8,2.86302]
[1719819106685,2.2932,3493.4,3492.8,3.66702]
[1719819106903,2.86251,3493.5,3492.8,4.6252085]
[1719819107089,2.86251,3493.5,3492.9,2.86293]
[1719819107710,2.86251,3493.5,3493.0,2.3707]
[1719819108554,2.86251,3493.5,3493.0,3.1747]
[1719819109178,2.86251,3493.5,3493.0,2.3707]
[1719819110194,2.86254,3493.4,3493.0,2.3707]
[1719819110560,2.86243,3493.6,3493.0,2.3707]
[1719819110759,2.86232,3493.7,3493.0,6.03756]
[1719819110965,2.86232,3493.7,3493.1,2.86277]
[1719819111181,2.3377,3494.2,3493.6,0.804]
[1719819111392,2.86196,3494.1,3493.5,2.86245]
[1719819111574,2.86196,3494.1,3493.4,3.1355]
[1719819112268,2.86196,3494.1,3493.4,6.05528697]
[1719819112470,2.86196,3494.1,3493.4,5.99804]
[1719819112991,2.86205,3494.0,3493.4,5.99804]
[1719819113193,2.3377,3494.2,3493.4,5.99804]
[1719819113395,2.86197,3494.1,3493.4,5.99804]
[1719819115370,2.86197,3494.1,3493.4,7.616113]
[1719819117761,2.86205,3494.0,3493.4,7.616113]
[1719819123301,2.86213,3493.9,3493.4,2.3315]
[1719819129981,0.804,3493.7,3493.2,7.32]
[1719819130192,2.86249,3493.5,3493.2,7.32]
[1719819130404,2.86249,3493.5,3492.8,2.86301]
[1719819130708,2.86249,3493.5,3492.9,1.35394186]
[1719819131510,2.86259,3493.4,3492.9,1.35394186]
[1719819132128,3.2456,3493.3,3492.7,7.32]
[1719819132293,0.804,3493.1,3492.7,7.32]
[1719819132615,2.8627,3493.2,3492.7,7.32]
[1719819133389,2.86303,3492.8,3492.7,7.32]
[1719819133586,2.86318,3492.7,3492.4,0.29356219]
[1719819133791,2.86318,3492.7,3492.1,9.7071]
[1719819133997,2.86318,3492.7,3492.2,1.337476]
[1719819134606,2.8632,3492.6,3492.2,1.337476]
[1719819134981,2.8632,3492.6,3492.2,4.337476]
[1719819138083,2.86328,3492.5,3491.7,19.49]
[1719819138288,2.86328,3492.5,3491.8,0.804]
[1719819139601,2.86328,3492.5,3491.7,8.40891482]
[1719819139799,2.86344,3492.3,3491.7,8.40891482]
[1719819139990,2.86344,3492.3,3491.8,1.37298048]
[1719819143312,2.86344,3492.3,3491.7,4.08891482]
[1719819153331,2.86344,3492.3,3491.7,6.95284482]
[1719819154531,2.86344,3492.3,3491.7,3.28491482]
[1719819154728,0.804,3492.1,3491.4,7.32]
[1719819154905,1.11886,3492.1,3491.4,7.32]
[1719819155232,2.86398,3491.7,3491.1,21.9419]
[1719819155411,2.86398,3491.7,3491.1,2.4519]
[1719819155609,2.86398,3491.7,3491.1,5.31632]
[1719819155798,2.86398,3491.7,3491.2,0.804]
[1719819156224,2.3328,3491.8,3491.2,3.66834]
[1719819156434,2.3328,3491.8,3491.3,3.0]
[1719819158001,2.3328,3491.8,3491.2,1.702475]
[1719819158002,2.3328,3491.8,3491.2,4.75975459]
[1719819158634,5.24717,3492.3,3491.4,0.804]
[1719819158933,2.86353,3492.2,3491.6,5.31741]
[1719819159142,2.86353,3492.2,3491.6,6.52169535]
[1719819159698,2.86353,3492.2,3491.6,3.65768535]
[1719819159903,2.86353,3492.2,3491.6,1.20428535]
[1719819160941,2.86353,3492.2,3491.6,1.26155889]
[1719819162118,2.8636,3492.1,3491.6,1.26155889]
[1719819163735,2.8636,3492.1,3491.7,1.00767989]
[1719819167019,5.24717,3492.3,3491.7,1.00767989]
[1719819167020,2.86347,3492.3,3491.7,1.00767989]
[1719819167224,2.86347,3492.3,3491.8,0.05727126]
[1719819169317,2.8633,3492.5,3491.9,0.804]
[1719819169517,2.8633,3492.5,3492.0,0.47328312]
[1719819171207,2.8633,3492.5,3491.9,2.92100947]
[1719819174512,2.86312,3492.7,3492.0,2.86368]
[1719819174732,2.86312,3492.7,3492.1,0.0572659]
[1719819175540,2.86331,3492.5,3492.1,0.0572659]
[1719819176071,2.86331,3492.5,3492.0,2.86368]
[1719819176265,2.86331,3492.5,3492.0,3.754877]
[1719819177036,2.86331,3492.5,3492.1,0.05726595]
[1719819178439,5.72629,3492.7,3492.1,0.05726595]
[1719819178634,2.86312,3492.7,3492.1,2.92085595]
[1719819178877,2.86312,3492.7,3492.2,3.0718733]
[1719819179172,2.86312,3492.7,3492.2,3.12913726]
[1719819179942,2.8632,3492.6,3492.2,3.12913726]
[1719819180167,2.8632,3492.6,3492.2,0.7479733]
[1719819180471,2.8632,3492.6,3492.0,6.078777]
[1719819180773,2.86332,3492.5,3492.0,3.215097]
[1719819184774,2.86332,3492.5,3492.0,6.078777]
[1719819190885,2.86332,3492.5,3492.0,3.215097]
[1719819191442,2.86337,3492.4,3492.0,3.215097]
[1719819195552,2.86337,3492.4,3492.0,2.3239]
[1719819197600,2.86325,3492.6,3492.0,2.3239]
[1719819197752,2.86325,3492.6,3492.0,3.1279]
[1719819199675,2.86314,3492.7,3492.0,5.99158]
[1719819199878,2.8632,3492.6,3492.1,0.05726451]
[1719819200064,2.8632,3492.6,3492.2,0.60488445]
[1719819202501,2.8632,3492.6,3492.3,2.2522]
[1719819206774,2.8632,3492.6,3492.0,3.66768]
[1719819206976,2.86328,3492.5,3492.0,2.3725]
[1719819210013,2.86328,3492.5,3491.8,2.4281]
[1719819210398,2.86344,3492.3,3491.8,2.4281]
[1719819216739,5.72662,3492.5,3491.8,2.4281]
[1719819216947,5.72662,3492.5,3491.9,0.6380352]
[1719819217108,2.86328,3492.5,3491.9,0.6380352]
[1719819217438,2.86328,3492.5,3491.9,1.4420352]
[1719819218407,2.86337,3492.4,3491.9,1.4420352]
[1719819218639,2.86337,3492.4,3491.8,5.29194]
[1719819219923,2.86345,3492.3,3491.8,2.4281]
[1719819220094,2.86355,3492.2,3491.8,2.4281]
[1719819222222,2.86342,3492.4,3491.8,2.4281]
[1719819222393,2.86342,3492.4,3491.8,3.2321]
[1719819222594,2.86342,3492.4,3491.8,4.1565512]
[1719819226399,2.86342,3492.4,3491.8,7.0203912]
[1719819232159,2.86342,3492.4,3491.8,6.2163912]
[1719819232333,2.86342,3492.4,3491.8,5.29194]
[1719819237049,2.86342,3492.4,3491.8,2.4281]
[1719819237251,2.86368,3492.1,3491.6,0.284392]
[1719819237473,0.804,3491.9,3491.4,7.32]
[1719819237660,2.3104,3492.1,3491.4,7.32]
[1719819237661,0.804,3491.5,3491.4,7.32]
[1719819237864,2.86421,3491.4,3490.8,2.4152]
[1719819240479,5.28183,3491.6,3490.9,0.804]
[1719819240851,5.28183,3491.6,3491.3,0.804]
[1719819241053,2.86403,3491.6,3491.3,0.804]
[1719819242181,2.86403,3491.6,3491.1,0.804]
[1719819243776,2.4178,3491.9,3491.1,3.47279]
[1719819243977,2.4068,3492.1,3491.6,0.804]
[1719819245453,5.27545,3492.6,3492.0,0.804]
[1719819246190,5.15799,3493.0,3492.2,0.804]
[1719819246388,2.86295,3492.9,3492.4,0.804]
[1719819254613,2.86295,3492.9,3492.3,2.86338]
[1719819254763,2.86295,3492.9,3492.3,3.66738]
[1719819258482,2.4787,3493.3,3492.6,2.86316]
[1719819258684,2.4787,3493.3,3492.8,3.66697]
[1719819260080,5.34132,3493.3,3492.8,3.66697]
[1719819260386,5.34132,3493.3,3492.8,0.804]
[1719819261174,2.86276,3493.2,3492.4,5.15922]
[1719819261394,2.86276,3493.2,3492.6,0.804]
[1719819262011,2.86276,3493.2,3492.5,2.86326]
[1719819262172,2.863,3492.9,3492.4,0.804]
[1719819262376,2.4762,3492.9,3492.1,2.86355]
[1719819262576,2.86303,3492.8,3492.1,3.66755]
[1719819262892,2.86303,3492.8,3492.2,2.86352]
[1719819265897,2.86303,3492.8,3492.3,0.804]
[1719819270785,2.4762,3492.9,3492.3,3.66744]
[1719819271002,5.33919,3492.9,3492.5,0.804]
[1719819272020,2.4762,3492.9,3492.5,0.804]
[1719819272514,2.86273,3493.2,3492.7,0.804]
[1719819272515,2.86272,3493.2,3492.7,0.804]
[1719819275517,2.86256,3493.4,3492.9,0.804]
[1719819275705,2.86262,3493.3,3492.9,0.804]
[1719819275907,5.23581,3493.5,3492.9,0.804]
[1719819276221,2.86254,3493.4,3492.9,3.66694]
[1719819278315,2.86254,3493.4,3492.9,0.804]
[1719819281441,2.86275,3493.2,3492.7,0.804]
[1719819282402,2.86275,3493.2,3492.7,3.66711]
[1719819284660,2.86288,3493.0,3492.5,0.366735]
[1719819284840,2.86275,3493.2,3492.8,0.804]
[1719819286832,2.86275,3493.2,3492.8,3.1027]
[1719819288847,2.3733,3493.5,3492.6,0.804]
[1719819288848,2.86284,3493.1,3492.6,0.804]
[1719819289333,2.86262,3493.3,3493.0,0.804]
[1719819289539,2.86262,3493.3,3492.6,4.53629104]
[1719819289740,2.86247,3493.5,3492.9,0.804]
[1719819289939,2.86247,3493.5,3493.0,2.3273]
[1719819290828,2.86255,3493.4,3492.9,3.66693]
[1719819294061,2.86242,3493.6,3492.9,3.66693]
[1719819294364,0.20818232,3493.5,3492.9,3.66693]
[1719819294560,2.86242,3493.6,3492.9,3.66693]
[1719819294743,0.20818232,3493.5,3492.9,3.66693]
[1719819294941,2.86242,3493.6,3492.9,3.66693]
[1719819295143,0.20818232,3493.5,3492.9,3.66693]
[1719819295344,2.86242,3493.6,3492.9,3.66693]
[1719819295556,0.20818231,3493.5,3492.9,3.66693]
[1719819295755,2.86242,3493.6,3492.9,3.66693]
[1719819296070,0.20818242,3493.5,3492.9,3.66693]
[1719819296256,2.86247,3493.5,3492.9,3.66693]
[1719819302046,2.4801,3493.4,3492.5,2.86326]
[1719819302250,2.86285,3493.1,3492.6,0.804]
[1719819302470,2.4801,3493.0,3492.5,2.86326]
[1719819302786,2.4801,3493.0,3492.6,0.804]
[1719819303094,2.3907,3493.3,3492.8,0.804]
[1719819303244,2.8627,3493.2,3492.8,0.804]
[1719819304469,2.3907,3493.3,3492.8,0.804]
[1719819304676,5.25337,3493.3,3492.8,0.804]
[1719819308510,2.86249,3493.5,3493.0,0.804]
[1719819309008,2.8624,3493.6,3493.0,0.804]
[1719819309200,0.2081758,3493.5,3493.0,0.804]
[1719819309507,2.8624,3493.6,3493.0,0.804]
[1719819309677,0.2081778,3493.5,3493.0,0.804]
[1719819309878,2.8624,3493.6,3493.0,0.804]
[1719819310106,0.20817777,3493.5,3493.0,0.804]
[1719819310311,2.8624,3493.6,3493.0,0.804]
[1719819310610,0.20817786,3493.5,3493.0,0.804]
[1719819310790,2.8624,3493.6,3493.0,0.804]
[1719819311113,0.2081784,3493.5,3493.0,3.80015609]
[1719819311410,2.86216,3493.9,3493.3,6.07351]
[1719819311615,2.86216,3493.9,3493.5,0.804]
[1719819314507,2.86216,3493.9,3493.3,0.804]
[1719819314710,2.86222,3493.8,3493.3,0.804]
[1719819315119,2.86232,3493.7,3493.1,6.06337]
[1719819315979,5.32879,3493.6,3493.0,0.93734609]
[1719819316183,5.32879,3493.6,3493.1,0.804]
[1719819317411,2.86239,3493.6,3493.1,0.804]
[1719819318621,2.86239,3493.6,3492.9,7.32]
[1719819318791,2.86255,3493.4,3492.9,8.124]
[1719819319298,2.86255,3493.4,3492.9,9.452448]
[1719819320821,2.86264,3493.3,3492.9,9.452448]
[1719819321615,2.86264,3493.3,3492.9,2.132448]
[1719819321925,2.86264,3493.3,3492.9,0.804]
[1719819326722,2.86246,3493.5,3493.2,3.2632]
[1719819331111,2.86246,3493.5,3493.2,0.804]
[1719819331447,2.86246,3493.5,3493.0,3.0563]
[1719819332143,2.86246,3493.5,3493.0,0.804]
[1719819334460,2.86254,3493.4,3493.0,0.804]
[1719819335928,2.86264,3493.3,3493.0,0.804]
[1719819336325,2.8627,3493.2,3492.5,2.66291977]
[1719819336676,2.8627,3493.2,3492.6,2.21529198]
[1719819336677,2.86291,3493.0,3492.6,2.21529198]
[1719819337227,2.86291,3493.0,3492.7,0.804]
[1719819337785,2.8627,3493.2,3492.7,0.804]
[1719819338147,2.8627,3493.2,3492.9,0.804]
[1719819338551,2.86224,3493.8,3493.1,0.804]
[1719819338753,2.86238,3493.6,3493.1,0.804]
[1719819343892,5.12998,3493.6,3493.0,0.804]
[1719819344091,2.86254,3493.4,3493.0,0.804]